[Event "Late-Titled-Tuesday-Blitz-May-28-2024"]
[Site "Chess.com"]
[Date "2024.05.28"]
[Round "7"]
[White "Oleg_Papayan"]
[Black "Romadk"]
[Result "1-0"]
[WhiteElo "2609"]
[BlackElo "2460"]
[TimeControl "180+1"]
[EndTime "15:18:04 PDT"]
[Termination "Oleg_Papayan won by resignation"]

1. e4 {[%clk 0:03:00.9]} 1... c5 {[%clk 0:02:59.7]} 2. d4 {[%clk 0:03:01.1]}
2... cxd4 {[%clk 0:02:59.6]} 3. Qxd4 {[%clk 0:03:02]} 3... Nc6 {[%clk
0:02:58.9]} 4. Qd3 {[%clk 0:03:02.9]} 4... g6 {[%clk 0:02:51.5]} 5. Nc3 {[%clk
0:03:03.4]} 5... Bg7 {[%clk 0:02:51.7]} 6. Nf3 {[%clk 0:03:03.4]} 6... d6 {[%clk
0:02:43.3]} 7. Be2 {[%clk 0:03:03.6]} 7... Nf6 {[%clk 0:02:40.3]} 8. O-O {[%clk
0:03:03.8]} 8... O-O {[%clk 0:02:38.8]} 9. Nd5 {[%clk 0:03:04.2]} 9... Nd7
{[%clk 0:02:35.3]} 10. c3 {[%clk 0:03:01.9]} 10... Nde5 {[%clk 0:02:35]} 11. Qc2
{[%clk 0:02:48]} 11... f5 {[%clk 0:02:25.7]} 12. exf5 {[%clk 0:02:45.2]} 12...
Bxf5 {[%clk 0:02:26.6]} 13. Qb3 {[%clk 0:02:43.7]} 13... Be6 {[%clk 0:02:15.9]}
14. Ng5 {[%clk 0:02:43.9]} 14... Qd7 {[%clk 0:01:55.3]} 15. Nxe7+ {[%clk
0:02:23]} 15... Qxe7 {[%clk 0:01:46.7]} 16. Qxe6+ {[%clk 0:02:18.6]} 16... Qxe6
{[%clk 0:01:41.6]} 17. Nxe6 {[%clk 0:02:19.5]} 17... Rf7 {[%clk 0:01:23.2]} 18.
Nxg7 {[%clk 0:02:19.3]} 18... Kxg7 {[%clk 0:01:24.1]} 19. Be3 {[%clk 0:02:18.8]}
19... Re8 {[%clk 0:01:19.7]} 20. Rfd1 {[%clk 0:02:11]} 20... Rd7 {[%clk
0:01:04.7]} 21. Rd2 {[%clk 0:01:46.2]} 21... Na5 {[%clk 0:00:49.5]} 22. b3
{[%clk 0:01:34.8]} 22... Nac6 {[%clk 0:00:41.4]} 23. Rad1 {[%clk 0:01:34.2]}
23... Nf7 {[%clk 0:00:37.2]} 24. c4 {[%clk 0:01:00.9]} 24... b6 {[%clk
0:00:28.7]} 25. Bf3 {[%clk 0:00:54.7]} 25... Nce5 {[%clk 0:00:28.3]} 26. Bd5
{[%clk 0:00:55.1]} 26... Rde7 {[%clk 0:00:25]} 27. Bd4 {[%clk 0:00:53.9]} 27...
Kh6 {[%clk 0:00:23.8]} 28. f3 {[%clk 0:00:52.8]} 28... g5 {[%clk 0:00:20]} 29.
Kf2 {[%clk 0:00:52.4]} 29... Rf8 {[%clk 0:00:19.5]} 30. Rh1 {[%clk 0:00:47]}
30... Kg6 {[%clk 0:00:18.1]} 31. Kg3 {[%clk 0:00:41.9]} 31... h5 {[%clk
0:00:18]} 32. h4 {[%clk 0:00:42.5]} 32... g4 {[%clk 0:00:18.1]} 33. Be4+ {[%clk
0:00:41.7]} 33... Kg7 {[%clk 0:00:17.6]} 34. f4 {[%clk 0:00:40.1]} 34... Kh6
{[%clk 0:00:15.9]} 35. fxe5 {[%clk 0:00:40]} 35... Nxe5 {[%clk 0:00:16.2]} 36.
Be3+ {[%clk 0:00:26.2]} 36... Kg7 {[%clk 0:00:15.3]} 37. Bg5 {[%clk 0:00:27.1]}
37... Ref7 {[%clk 0:00:15.1]} 38. Rxd6 {[%clk 0:00:23.1]} 38... Rd7 {[%clk
0:00:09.6]} 39. Bh6+ {[%clk 0:00:20.8]} 39... Kf7 {[%clk 0:00:05]} 40. Bxf8
{[%clk 0:00:21]} 40... Kxf8 {[%clk 0:00:02.2]} 41. Rxd7 {[%clk 0:00:20.5]} 41...
Nxd7 {[%clk 0:00:03.1]} 42. Bg6 {[%clk 0:00:17]} 42... Nc5 {[%clk 0:00:04]} 43.
Bxh5 {[%clk 0:00:15.9]} 43... Nd3 {[%clk 0:00:04.5]} 44. Bxg4 {[%clk 0:00:15]}
44... Ne5 {[%clk 0:00:05.4]} 45. Rf1+ {[%clk 0:00:14.1]} 45... Nf7 {[%clk
0:00:06.3]} 46. Be6 {[%clk 0:00:13.9]} 46... Ke7 {[%clk 0:00:06.3]} 47. Bxf7
{[%clk 0:00:14.8]} 47... Kd6 {[%clk 0:00:06.8]} 48. Kg4 {[%clk 0:00:15.3]} 48...
Kc5 {[%clk 0:00:07.7]} 49. h5 {[%clk 0:00:15.2]} 49... Kb4 {[%clk 0:00:08.4]}
50. Rf2 {[%clk 0:00:15.9]} 50... Ka3 {[%clk 0:00:09.2]} 51. h6 {[%clk
0:00:16.1]} 51... Kb4 {[%clk 0:00:10.1]} 52. h7 {[%clk 0:00:16.7]} 52... Ka5
{[%clk 0:00:11]} 53. h8=Q {[%clk 0:00:17.2]} 53... Ka6 {[%clk 0:00:11.9]} 54.
Qd4 {[%clk 0:00:17.2]} 54... Ka5 {[%clk 0:00:12.8]} 55. Qd5+ {[%clk 0:00:17.3]}
55... Ka6 {[%clk 0:00:13.7]} 56. Qb5+ {[%clk 0:00:17.5]} 1-0

[Event "Late-Titled-Tuesday-Blitz-May-28-2024"]
[Site "Chess.com"]
[Date "2024.05.28"]
[Round "7"]
[White "ExchangeAB"]
[Black "djano"]
[Result "0-1"]
[WhiteElo "2495"]
[BlackElo "2618"]
[TimeControl "180+1"]
[EndTime "15:18:05 PDT"]
[Termination "djano won on time"]

1. d4 {[%clk 0:03:00.9]} 1... Nf6 {[%clk 0:03:00]} 2. Nf3 {[%clk 0:03:00.4]}
2... g6 {[%clk 0:03:00.3]} 3. Nbd2 {[%clk 0:03:00]} 3... Bg7 {[%clk 0:02:59.7]}
4. e4 {[%clk 0:02:58.9]} 4... d6 {[%clk 0:03:00.1]} 5. Bd3 {[%clk 0:02:58.5]}
5... O-O {[%clk 0:03:00.1]} 6. O-O {[%clk 0:02:58.6]} 6... c5 {[%clk 0:03:00.7]}
7. c3 {[%clk 0:02:58.3]} 7... Qc7 {[%clk 0:02:57.3]} 8. Re1 {[%clk 0:02:57.8]}
8... cxd4 {[%clk 0:02:55.1]} 9. cxd4 {[%clk 0:02:57.5]} 9... Nc6 {[%clk
0:02:55.7]} 10. a3 {[%clk 0:02:56.9]} 10... Nh5 {[%clk 0:02:49]} 11. Nb3 {[%clk
0:02:53.7]} 11... a5 {[%clk 0:02:48.6]} 12. a4 {[%clk 0:02:52.8]} 12... Nb4
{[%clk 0:02:47.6]} 13. Be3 {[%clk 0:02:46.5]} 13... Bg4 {[%clk 0:02:38.1]} 14.
Rc1 {[%clk 0:02:42.2]} 14... Qd8 {[%clk 0:02:25.3]} 15. Bb1 {[%clk 0:02:33.1]}
15... Qd7 {[%clk 0:02:20.7]} 16. Nbd2 {[%clk 0:02:22.8]} 16... Rfc8 {[%clk
0:01:51.1]} 17. Rxc8+ {[%clk 0:02:22]} 17... Qxc8 {[%clk 0:01:49.1]} 18. h3
{[%clk 0:02:20.6]} 18... Bd7 {[%clk 0:01:46.8]} 19. Qb3 {[%clk 0:02:11.1]} 19...
Qe8 {[%clk 0:01:43.1]} 20. g4 {[%clk 0:02:00.2]} 20... Nf6 {[%clk 0:01:41.3]}
21. Rc1 {[%clk 0:01:52.9]} 21... Bxa4 {[%clk 0:01:40.6]} 22. Qa3 {[%clk
0:01:53.2]} 22... Bc6 {[%clk 0:01:32.6]} 23. d5 {[%clk 0:01:51.9]} 23... Bb5
{[%clk 0:01:31.4]} 24. Nd4 {[%clk 0:01:47.8]} 24... Bd7 {[%clk 0:01:22]} 25. Rc7
{[%clk 0:01:43.2]} 25... Qd8 {[%clk 0:01:14.2]} 26. Rc3 {[%clk 0:01:38.8]} 26...
h5 {[%clk 0:01:07.9]} 27. g5 {[%clk 0:01:37.8]} 27... Ne8 {[%clk 0:01:07]} 28.
h4 {[%clk 0:01:34.9]} 28... Nc7 {[%clk 0:01:01.4]} 29. Rc1 {[%clk 0:01:05.2]}
29... Nb5 {[%clk 0:00:52.9]} 30. Nxb5 {[%clk 0:01:04.8]} 30... Bxb5 {[%clk
0:00:53.8]} 31. Nc4 {[%clk 0:00:55.9]} 31... Qd7 {[%clk 0:00:45.8]} 32. Bd2
{[%clk 0:00:41.3]} 32... Rc8 {[%clk 0:00:39.5]} 33. Ne3 {[%clk 0:00:32.6]} 33...
Rxc1+ {[%clk 0:00:36.8]} 34. Bxc1 {[%clk 0:00:33.5]} 34... Qh3 {[%clk
0:00:29.2]} 35. Qxa5 {[%clk 0:00:30.5]} 35... Be5 {[%clk 0:00:28.9]} 36. f4
{[%clk 0:00:05.2]} 36... Bxf4 {[%clk 0:00:24.4]} 37. Qxb5 {[%clk 0:00:05.4]}
37... Bxe3+ {[%clk 0:00:21]} 38. Bxe3 {[%clk 0:00:05.5]} 38... Qxe3+ {[%clk
0:00:21.9]} 39. Kh2 {[%clk 0:00:05.9]} 39... Qf2+ {[%clk 0:00:20.6]} 40. Kh3
{[%clk 0:00:06.4]} 40... Qxb2 {[%clk 0:00:21.3]} 41. Qe8+ {[%clk 0:00:06]} 41...
Kg7 {[%clk 0:00:21.9]} 42. Qxe7 {[%clk 0:00:06.9]} 42... Qxb1 {[%clk 0:00:20.2]}
43. Qf6+ {[%clk 0:00:07.5]} 43... Kf8 {[%clk 0:00:17]} 44. Qd8+ {[%clk
0:00:07.3]} 44... Kg7 {[%clk 0:00:17.5]} 45. Qf6+ {[%clk 0:00:07.6]} 45... Kg8
{[%clk 0:00:18.1]} 46. Qd8+ {[%clk 0:00:07.2]} 46... Kh7 {[%clk 0:00:18.5]} 47.
Qxd6 {[%clk 0:00:07.4]} 47... Qd3+ {[%clk 0:00:17.3]} 48. Kh2 {[%clk 0:00:05.8]}
48... Qe2+ {[%clk 0:00:17.4]} 49. Kh3 {[%clk 0:00:06]} 49... Qf3+ {[%clk
0:00:17.5]} 50. Kh2 {[%clk 0:00:06.3]} 50... Nd3 {[%clk 0:00:15.9]} 51. Qe7
{[%clk 0:00:03.5]} 51... Ne1 {[%clk 0:00:14.6]} 0-1

[Event "Late-Titled-Tuesday-Blitz-May-28-2024"]
[Site "Chess.com"]
[Date "2024.05.28"]
[Round "7"]
[White "GothamChess"]
[Black "Dacean99"]
[Result "1-0"]
[WhiteElo "2802"]
[BlackElo "2594"]
[TimeControl "180+1"]
[EndTime "15:18:07 PDT"]
[Termination "GothamChess won by checkmate"]

1. e4 {[%clk 0:03:00.9]} 1... c5 {[%clk 0:02:59.9]} 2. a3 {[%clk 0:03:00.6]}
2... e5 {[%clk 0:02:59.3]} 3. Nc3 {[%clk 0:03:00.9]} 3... g6 {[%clk 0:02:56.6]}
4. Bc4 {[%clk 0:02:59.4]} 4... Bg7 {[%clk 0:02:56]} 5. d3 {[%clk 0:02:59.5]}
5... Ne7 {[%clk 0:02:56]} 6. f4 {[%clk 0:02:59.6]} 6... d6 {[%clk 0:02:53.9]} 7.
Nf3 {[%clk 0:02:59]} 7... O-O {[%clk 0:02:53.1]} 8. O-O {[%clk 0:02:57]} 8...
Nbc6 {[%clk 0:02:52.6]} 9. Kh1 {[%clk 0:02:57.2]} 9... a6 {[%clk 0:02:50.1]} 10.
fxe5 {[%clk 0:02:51.8]} 10... dxe5 {[%clk 0:02:49.7]} 11. Bg5 {[%clk 0:02:50.9]}
11... h6 {[%clk 0:02:50.2]} 12. Be3 {[%clk 0:02:50.1]} 12... Nd4 {[%clk
0:02:48.8]} 13. Qd2 {[%clk 0:02:44.5]} 13... Kh7 {[%clk 0:02:44.9]} 14. a4
{[%clk 0:02:35.1]} 14... f5 {[%clk 0:02:36.9]} 15. exf5 {[%clk 0:02:23]} 15...
Nexf5 {[%clk 0:02:33]} 16. Rac1 {[%clk 0:01:30.1]} 16... Bd7 {[%clk 0:02:27.3]}
17. Bd5 {[%clk 0:01:22.3]} 17... Rb8 {[%clk 0:02:13.5]} 18. b3 {[%clk
0:01:10.2]} 18... b5 {[%clk 0:02:07.1]} 19. axb5 {[%clk 0:01:09.7]} 19... axb5
{[%clk 0:02:08]} 20. Ne4 {[%clk 0:01:08.3]} 20... Qc7 {[%clk 0:01:40.4]} 21. c3
{[%clk 0:00:56.6]} 21... Nxf3 {[%clk 0:01:40]} 22. Rxf3 {[%clk 0:00:56.1]} 22...
Nxe3 {[%clk 0:01:40.4]} 23. Qxe3 {[%clk 0:00:54.2]} 23... Rxf3 {[%clk
0:01:39.8]} 24. gxf3 {[%clk 0:00:49.5]} 24... Rc8 {[%clk 0:01:27.6]} 25. Rg1
{[%clk 0:00:46.9]} 25... Bf5 {[%clk 0:01:27.2]} 26. Ra1 {[%clk 0:00:42]} 26...
Rd8 {[%clk 0:01:16.9]} 27. c4 {[%clk 0:00:40.4]} 27... bxc4 {[%clk 0:01:15.9]}
28. bxc4 {[%clk 0:00:40.4]} 28... Rc8 {[%clk 0:01:13.3]} 29. Ng3 {[%clk
0:00:38.9]} 29... e4 {[%clk 0:00:59.5]} 30. Nxf5 {[%clk 0:00:36.8]} 30... gxf5
{[%clk 0:00:51.2]} 31. Rb1 {[%clk 0:00:28.7]} 31... Bd4 {[%clk 0:00:46.6]} 32.
Qe2 {[%clk 0:00:22.9]} 32... Qf4 {[%clk 0:00:42.5]} 33. dxe4 {[%clk 0:00:19.6]}
33... Rb8 {[%clk 0:00:34]} 34. Rxb8 {[%clk 0:00:15]} 34... Qxb8 {[%clk
0:00:34.9]} 35. exf5 {[%clk 0:00:10.5]} 35... Be5 {[%clk 0:00:23.7]} 36. f6
{[%clk 0:00:08.3]} 36... Kg6 {[%clk 0:00:22]} 37. f4 {[%clk 0:00:04.3]} 37...
Bxf4 {[%clk 0:00:17.3]} 38. f7 {[%clk 0:00:04.9]} 38... Bd6 {[%clk 0:00:09.9]}
39. Qe6+ {[%clk 0:00:04.6]} 39... Kg7 {[%clk 0:00:08.8]} 40. Qg4+ {[%clk
0:00:05.1]} 40... Kf6 {[%clk 0:00:08.1]} 41. Qf3+ {[%clk 0:00:03.9]} 41... Kg7
{[%clk 0:00:06.7]} 42. Qg4+ {[%clk 0:00:03.5]} 42... Kf6 {[%clk 0:00:06.5]} 43.
Qf3+ {[%clk 0:00:03]} 43... Kg7 {[%clk 0:00:06.3]} 44. Kg2 {[%clk 0:00:03.9]}
44... Qb2+ {[%clk 0:00:05.2]} 45. Kf1 {[%clk 0:00:04.4]} 45... Qc1+ {[%clk
0:00:05.1]} 46. Ke2 {[%clk 0:00:04.4]} 46... Qc2+ {[%clk 0:00:05.7]} 47. Ke1
{[%clk 0:00:04.1]} 47... Qxh2 {[%clk 0:00:03.7]} 48. f8=Q+ {[%clk 0:00:03.4]}
48... Bxf8 {[%clk 0:00:01.9]} 49. Qf7+ {[%clk 0:00:04.1]} 49... Kh8 {[%clk
0:00:02.4]} 50. Qxf8+ {[%clk 0:00:04.7]} 50... Kh7 {[%clk 0:00:03]} 51. Be4#
{[%clk 0:00:05.5]} 1-0

[Event "Late-Titled-Tuesday-Blitz-May-28-2024"]
[Site "Chess.com"]
[Date "2024.05.28"]
[Round "7"]
[White "artin10862"]
[Black "Iball95"]
[Result "1-0"]
[WhiteElo "3026"]
[BlackElo "2850"]
[TimeControl "180+1"]
[EndTime "15:18:08 PDT"]
[Termination "artin10862 won on time"]

1. c4 {[%clk 0:03:00.9]} 1... e6 {[%clk 0:02:59.8]} 2. Nc3 {[%clk 0:02:53.8]}
2... d5 {[%clk 0:03:00.3]} 3. d4 {[%clk 0:02:54.2]} 3... c5 {[%clk 0:03:00.1]}
4. e3 {[%clk 0:02:52.2]} 4... Nf6 {[%clk 0:02:59.3]} 5. Nf3 {[%clk 0:02:51]}
5... Nc6 {[%clk 0:02:59.4]} 6. a3 {[%clk 0:02:51]} 6... Ne4 {[%clk 0:02:58.8]}
7. Bd3 {[%clk 0:02:40.2]} 7... Nxc3 {[%clk 0:02:58.3]} 8. bxc3 {[%clk
0:02:40.3]} 8... Be7 {[%clk 0:02:57.2]} 9. O-O {[%clk 0:02:35.8]} 9... dxc4
{[%clk 0:02:57.2]} 10. Bxc4 {[%clk 0:02:36]} 10... O-O {[%clk 0:02:57.7]} 11. e4
{[%clk 0:02:35.8]} 11... Na5 {[%clk 0:02:48.7]} 12. Bd3 {[%clk 0:02:26.7]} 12...
b6 {[%clk 0:02:37]} 13. d5 {[%clk 0:02:26.6]} 13... exd5 {[%clk 0:02:28.3]} 14.
exd5 {[%clk 0:02:27.5]} 14... c4 {[%clk 0:02:25]} 15. Bc2 {[%clk 0:02:06.5]}
15... Bd6 {[%clk 0:02:13.5]} 16. Ng5 {[%clk 0:01:59.6]} 16... h6 {[%clk
0:01:51.6]} 17. Qh5 {[%clk 0:01:54.8]} 17... Nb3 {[%clk 0:00:59]} 18. Be3 {[%clk
0:01:27.7]} 18... Nxa1 {[%clk 0:00:55.9]} 19. Rxa1 {[%clk 0:01:25.1]} 19... Qf6
{[%clk 0:00:36.4]} 20. Ne4 {[%clk 0:01:23]} 20... Qe5 {[%clk 0:00:36.5]} 21. Qh4
{[%clk 0:01:20.9]} 21... Be7 {[%clk 0:00:26.8]} 22. Qg3 {[%clk 0:00:54.8]} 22...
Qxg3 {[%clk 0:00:26.4]} 23. hxg3 {[%clk 0:00:55.7]} 23... Rd8 {[%clk 0:00:23.9]}
24. d6 {[%clk 0:00:48.9]} 24... Bf8 {[%clk 0:00:23.7]} 25. Bf4 {[%clk
0:00:35.8]} 25... Bb7 {[%clk 0:00:23.6]} 26. Rd1 {[%clk 0:00:33.7]} 26... Rd7
{[%clk 0:00:23.7]} 27. f3 {[%clk 0:00:26.4]} 27... Rad8 {[%clk 0:00:19.7]} 28.
Ba4 {[%clk 0:00:24.7]} 28... Bxe4 {[%clk 0:00:14.4]} 29. Bxd7 {[%clk 0:00:19.5]}
29... Bd3 {[%clk 0:00:11.7]} 30. Bb5 {[%clk 0:00:17.5]} 30... f6 {[%clk
0:00:07.3]} 31. d7 {[%clk 0:00:17.1]} 31... Kf7 {[%clk 0:00:07.3]} 32. Bc7
{[%clk 0:00:17.1]} 32... Be7 {[%clk 0:00:04.4]} 33. Bxd8 {[%clk 0:00:10.5]}
33... Bxd8 {[%clk 0:00:05.3]} 34. Re1 {[%clk 0:00:11.2]} 34... Be7 {[%clk
0:00:05.8]} 35. Bc6 {[%clk 0:00:11.5]} 35... Bf5 {[%clk 0:00:04.8]} 36. Bd5+
{[%clk 0:00:07.6]} 36... Kf8 {[%clk 0:00:05.2]} 37. Be6 {[%clk 0:00:08.2]} 37...
Bd3 {[%clk 0:00:05.8]} 38. g4 {[%clk 0:00:08]} 38... g6 {[%clk 0:00:04]} 39. Bd5
{[%clk 0:00:06.6]} 39... b5 {[%clk 0:00:02.6]} 40. Bc6 {[%clk 0:00:06.9]} 40...
a6 {[%clk 0:00:02.6]} 41. d8=Q+ {[%clk 0:00:07.3]} 41... Bxd8 {[%clk 0:00:02.4]}
42. Re8+ {[%clk 0:00:08.2]} 42... Kf7 {[%clk 0:00:02.5]} 43. Rxd8 {[%clk
0:00:09.1]} 43... Be4 {[%clk 0:00:02.1]} 44. Bxe4 {[%clk 0:00:08.5]} 44... f5
{[%clk 0:00:02.3]} 45. gxf5 {[%clk 0:00:08.1]} 45... b4 {[%clk 0:00:02.9]} 46.
axb4 {[%clk 0:00:08.1]} 1-0

[Event "Late-Titled-Tuesday-Blitz-May-28-2024"]
[Site "Chess.com"]
[Date "2024.05.28"]
[Round "7"]
[White "Sanyura"]
[Black "giomar27"]
[Result "1-0"]
[WhiteElo "2613"]
[BlackElo "2462"]
[TimeControl "180+1"]
[EndTime "15:18:09 PDT"]
[Termination "Sanyura won by checkmate"]

1. c4 {[%clk 0:03:00.7]} 1... e5 {[%clk 0:02:55.7]} 2. Nc3 {[%clk 0:03:00.5]}
2... Nf6 {[%clk 0:02:56]} 3. g3 {[%clk 0:03:00]} 3... Bc5 {[%clk 0:02:56]} 4.
Bg2 {[%clk 0:02:59.4]} 4... O-O {[%clk 0:02:56]} 5. d3 {[%clk 0:02:57.5]} 5...
Re8 {[%clk 0:02:36]} 6. Nf3 {[%clk 0:02:57.2]} 6... c6 {[%clk 0:02:30]} 7. O-O
{[%clk 0:02:55.8]} 7... d5 {[%clk 0:02:30]} 8. cxd5 {[%clk 0:02:54.7]} 8... cxd5
{[%clk 0:02:30.9]} 9. Bg5 {[%clk 0:02:55.1]} 9... Nc6 {[%clk 0:02:23.4]} 10.
Bxf6 {[%clk 0:02:53.3]} 10... gxf6 {[%clk 0:02:23.6]} 11. e4 {[%clk 0:02:49]}
11... d4 {[%clk 0:02:19.2]} 12. Nd5 {[%clk 0:02:48.9]} 12... Be6 {[%clk
0:02:19.6]} 13. Nh4 {[%clk 0:02:49]} 13... Nb4 {[%clk 0:02:13.2]} 14. Rc1 {[%clk
0:02:35.4]} 14... Rc8 {[%clk 0:02:11.6]} 15. Qb3 {[%clk 0:01:57.4]} 15... Nxd5
{[%clk 0:01:34.8]} 16. exd5 {[%clk 0:01:57.2]} 16... Bg4 {[%clk 0:01:34.7]} 17.
Be4 {[%clk 0:01:39]} 17... Qb6 {[%clk 0:01:20]} 18. Qa4 {[%clk 0:01:34.6]} 18...
Qb4 {[%clk 0:01:11.4]} 19. Qxb4 {[%clk 0:01:17.2]} 19... Bxb4 {[%clk 0:01:12.3]}
20. Bf5 {[%clk 0:01:17.8]} 20... Bxf5 {[%clk 0:01:00.7]} 21. Nxf5 {[%clk
0:01:18.7]} 21... Red8 {[%clk 0:01:00.7]} 22. Kg2 {[%clk 0:00:36.5]} 22... Kf8
{[%clk 0:00:47.8]} 23. Kf3 {[%clk 0:00:35.1]} 23... Ke8 {[%clk 0:00:42.3]} 24.
Ke4 {[%clk 0:00:35.1]} 24... Kd7 {[%clk 0:00:39.2]} 25. g4 {[%clk 0:00:25.4]}
25... Bd2 {[%clk 0:00:38.5]} 26. Rxc8 {[%clk 0:00:08.2]} 26... Rxc8 {[%clk
0:00:39.4]} 27. h4 {[%clk 0:00:08.8]} 27... Rc2 {[%clk 0:00:39.1]} 28. g5 {[%clk
0:00:08]} 28... Bf4 {[%clk 0:00:20.5]} 29. gxf6 {[%clk 0:00:07.7]} 29... Re2+
{[%clk 0:00:20.7]} 30. Kf3 {[%clk 0:00:08]} 30... Rxb2 {[%clk 0:00:21.4]} 31.
Rg1 {[%clk 0:00:07.8]} 31... Rb6 {[%clk 0:00:19.1]} 32. Rg7 {[%clk 0:00:08]}
32... Rxf6 {[%clk 0:00:19.1]} 33. Ke4 {[%clk 0:00:08.7]} 33... h6 {[%clk
0:00:12.7]} 34. Rg8 {[%clk 0:00:07.2]} 34... Rb6 {[%clk 0:00:09.3]} 35. Rf8
{[%clk 0:00:06.6]} 35... Rf6 {[%clk 0:00:07.4]} 36. Ra8 {[%clk 0:00:05]} 36...
Ra6 {[%clk 0:00:05.6]} 37. Rb8 {[%clk 0:00:04.4]} 37... Kc7 {[%clk 0:00:03.9]}
38. Re8 {[%clk 0:00:03.4]} 38... Rxa2 {[%clk 0:00:04.2]} 39. Re7+ {[%clk
0:00:03.8]} 39... Kb6 {[%clk 0:00:04.8]} 40. d6 {[%clk 0:00:03.7]} 40... Kc6
{[%clk 0:00:02.7]} 41. Rc7+ {[%clk 0:00:04]} 41... Kb6 {[%clk 0:00:02.7]} 42.
Rxf7 {[%clk 0:00:04.6]} 42... Rc2 {[%clk 0:00:03]} 43. d7 {[%clk 0:00:04.3]}
43... Kc7 {[%clk 0:00:03.3]} 44. Ng7 {[%clk 0:00:04.8]} 44... Rc6 {[%clk
0:00:01.2]} 45. Kf5 {[%clk 0:00:02.9]} 45... Bd2 {[%clk 0:00:01]} 46. Ne6+
{[%clk 0:00:03.4]} 46... Kd6 {[%clk 0:00:00.4]} 47. d8=Q# {[%clk 0:00:03.6]} 1-0

[Event "Late-Titled-Tuesday-Blitz-May-28-2024"]
[Site "Chess.com"]
[Date "2024.05.28"]
[Round "7"]
[White "kalinchick"]
[Black "GoltsevDmitry2000"]
[Result "0-1"]
[WhiteElo "2365"]
[BlackElo "2711"]
[TimeControl "180+1"]
[EndTime "15:18:16 PDT"]
[Termination "GoltsevDmitry2000 won by resignation"]

1. Nf3 {[%clk 0:03:00.9]} 1... d5 {[%clk 0:03:00.1]} 2. d4 {[%clk 0:03:00.6]}
2... c6 {[%clk 0:03:00.4]} 3. c4 {[%clk 0:02:58.9]} 3... Nf6 {[%clk 0:03:01.3]}
4. cxd5 {[%clk 0:02:59.1]} 4... cxd5 {[%clk 0:03:01.8]} 5. Nc3 {[%clk
0:02:59.2]} 5... Nc6 {[%clk 0:03:02.7]} 6. Bf4 {[%clk 0:02:59.3]} 6... Bf5
{[%clk 0:02:59.2]} 7. Ne5 {[%clk 0:02:58]} 7... Qb6 {[%clk 0:02:57.5]} 8. Nxc6
{[%clk 0:02:44.7]} 8... bxc6 {[%clk 0:02:56.8]} 9. Bc1 {[%clk 0:02:23.4]} 9...
e5 {[%clk 0:02:44.6]} 10. e3 {[%clk 0:02:19]} 10... exd4 {[%clk 0:02:43.9]} 11.
exd4 {[%clk 0:02:19.9]} 11... Bb4 {[%clk 0:02:42.2]} 12. Bd2 {[%clk 0:02:14.6]}
12... Qxd4 {[%clk 0:02:37.9]} 13. Be2 {[%clk 0:02:12.3]} 13... O-O {[%clk
0:02:35.7]} 14. O-O {[%clk 0:02:12]} 14... Rfe8 {[%clk 0:02:32.2]} 15. a3 {[%clk
0:02:03.8]} 15... Bxc3 {[%clk 0:02:26.1]} 16. Bxc3 {[%clk 0:02:03.5]} 16... Qxd1
{[%clk 0:02:25.6]} 17. Bxd1 {[%clk 0:02:04.3]} 17... Bd3 {[%clk 0:02:24.3]} 18.
Re1 {[%clk 0:02:02.3]} 18... d4 {[%clk 0:02:22.3]} 19. Bd2 {[%clk 0:01:50.6]}
19... Rxe1+ {[%clk 0:02:18.8]} 20. Bxe1 {[%clk 0:01:50.6]} 20... Re8 {[%clk
0:02:19.3]} 21. Bd2 {[%clk 0:01:45]} 21... Be2 {[%clk 0:02:13.2]} 22. Bb3 {[%clk
0:01:40.3]} 22... Ne4 {[%clk 0:01:59.4]} 23. Bf4 {[%clk 0:01:33.9]} 23... d3
{[%clk 0:01:56.9]} 24. f3 {[%clk 0:01:29.7]} 24... g5 {[%clk 0:01:48.8]} 25.
fxe4 {[%clk 0:01:14.3]} 25... gxf4 {[%clk 0:01:47.4]} 26. Kf2 {[%clk 0:01:11.4]}
26... Rb8 {[%clk 0:01:43.5]} 27. Bc4 {[%clk 0:01:00.2]} 27... Rxb2 {[%clk
0:01:41.8]} 28. e5 {[%clk 0:00:52.4]} 28... Kg7 {[%clk 0:01:40.5]} 29. a4 {[%clk
0:00:46]} 29... h5 {[%clk 0:01:33.1]} 30. a5 {[%clk 0:00:44.9]} 30... h4 {[%clk
0:01:33.5]} 31. h3 {[%clk 0:00:43]} 31... Rc2 {[%clk 0:01:29.9]} 32. Ba6 {[%clk
0:00:39.1]} 32... Rc5 {[%clk 0:01:22.5]} 33. Ra3 {[%clk 0:00:34.1]} 33... Rxe5
{[%clk 0:01:19.6]} 34. Bxd3 {[%clk 0:00:34]} 34... Bxd3 {[%clk 0:01:20.1]} 35.
Rxd3 {[%clk 0:00:33.8]} 35... Rxa5 {[%clk 0:01:19.4]} 36. Rc3 {[%clk 0:00:32.7]}
36... c5 {[%clk 0:01:08.7]} 37. Rc4 {[%clk 0:00:32.9]} 37... Ra6 {[%clk
0:01:08.2]} 38. Rxc5 {[%clk 0:00:30.9]} 38... Rg6 {[%clk 0:01:05.5]} 39. Rf5
{[%clk 0:00:27.4]} 39... a6 {[%clk 0:01:03.2]} 40. Kf3 {[%clk 0:00:20.5]} 40...
Rg3+ {[%clk 0:00:56.5]} 41. Kf2 {[%clk 0:00:19.7]} 41... f3 {[%clk 0:00:56]} 42.
gxf3 {[%clk 0:00:18.9]} 42... Rxh3 {[%clk 0:00:56.2]} 43. Ra5 {[%clk 0:00:19.7]}
43... Rh2+ {[%clk 0:00:56.3]} 44. Kg1 {[%clk 0:00:19.5]} 44... Rc2 {[%clk
0:00:55]} 45. Rxa6 {[%clk 0:00:19]} 45... Rc4 {[%clk 0:00:47]} 46. Kg2 {[%clk
0:00:18.4]} 46... f6 {[%clk 0:00:47.5]} 47. Kh3 {[%clk 0:00:17.2]} 47... Rf4
{[%clk 0:00:47.1]} 48. Ra5 {[%clk 0:00:15]} 48... Kg6 {[%clk 0:00:45.2]} 49. Rb5
{[%clk 0:00:14.2]} 49... Kf7 {[%clk 0:00:43.2]} 50. Rh5 {[%clk 0:00:12]} 50...
Kg6 {[%clk 0:00:41.4]} 51. Rxh4 {[%clk 0:00:12]} 51... Rxf3+ {[%clk 0:00:41.9]}
52. Kg2 {[%clk 0:00:11.8]} 52... Ra3 {[%clk 0:00:42.5]} 53. Rh8 {[%clk
0:00:11.8]} 53... Kg5 {[%clk 0:00:42.8]} 54. Rb8 {[%clk 0:00:10.4]} 54... f5
{[%clk 0:00:42.9]} 55. Kf2 {[%clk 0:00:10]} 55... Kg4 {[%clk 0:00:42]} 56. Rb7
{[%clk 0:00:08.5]} 56... Ra2+ {[%clk 0:00:41.7]} 57. Kf1 {[%clk 0:00:06.9]}
57... Rd2 {[%clk 0:00:42.1]} 58. Rb8 {[%clk 0:00:06.1]} 58... Rd3 {[%clk
0:00:41.8]} 59. Rb6 {[%clk 0:00:04.6]} 59... Kf3 {[%clk 0:00:41.6]} 60. Rb1
{[%clk 0:00:01.8]} 60... Ra3 {[%clk 0:00:41.7]} 61. Rc1 {[%clk 0:00:01.7]} 61...
Kg3 {[%clk 0:00:39.6]} 62. Rb1 {[%clk 0:00:02.2]} 62... f4 {[%clk 0:00:38.7]}
63. Rc1 {[%clk 0:00:02.9]} 63... Ra2 {[%clk 0:00:38.5]} 64. Rd1 {[%clk 0:00:03]}
64... f3 {[%clk 0:00:38.5]} 65. Rc1 {[%clk 0:00:03.1]} 65... Rh2 {[%clk
0:00:38.8]} 66. Kg1 {[%clk 0:00:02.8]} 66... f2+ {[%clk 0:00:39.4]} 67. Kf1
{[%clk 0:00:03.4]} 67... Rh1+ {[%clk 0:00:38.9]} 68. Ke2 {[%clk 0:00:04.3]}
68... Rxc1 {[%clk 0:00:39.4]} 0-1